Workbook

Sheet Instructions
B3: Last edited by Brad Russell, 6:30 on 3/19/2013
A5: Thistle Southern Series Scorer Instructions
A6: 1 | B6: Copy the Orange Peel scores from HTML document, copying ONLY the scoring table (exclude all the other info)
A7: 2 | B7: Delete all data in 'Peel Raw Data' sheet and delete any rows with merged cells (shouldn't be any)
A8: 3 | B8: Click upper left cell of sheet, select Paste > Paste Special > Text
A9: 4 | B9: Verify the data pasted in correctly and Race 1 for the Peel is in Column F and Boat Numbers are in Column B
B10: Manually change scores with letters to the correct numerical score
A11: 5 | B11: Click this button to clean all letters/characters from the scores:
A12: 6 | B12: Check 'Scoring Sheet' to make sure no race results include letters or characters
A13: 7 | B13: Check Series Score, Raw Sum, Races Count, & Throwout Values to make sure they pass the sanity test
A14: 8 | B14: Separately for Skipper & Open divisions, highlight columns B through W and sort by column W (Series Score)
A15: 9 | B15: Check for ties - Rank calculation will give them the same rank, but doesn't break ties according to US Sailing rules - rearrange rows manually
A16: 10 | B16: Hide any columns you don't want displayed on printout
A17: 11 | B17: Save & Print
A29: Notes/To Do
B30: Clean Scores only checks for DNF, DNS, DSQ, OCS, and RDG. Are there any others?
B31: Check boat numbers for crew…I just filled in the MWE number for crew who didn't have another number listed
B32: Setup 'Scoring Sheet' to auto populate with the output data you get from SPYC/MWE - send me the raw data and I can work on that
B33: Add MWE place to hidden column on 'Scoring Sheet'
B34: Currently hardcoded for 7 races at MWE and 0-5 at the Peel. Need to make it more flexible for next year
B35: Update logo to 2013
B36: Format 'Scoring Sheet' for print with desired borders, etc
B37: Find a workaround for leaving letters in scores and getting scores to sum properly, if it really matters
A40: Done | B40: 2 scoring programs use different slash for scores with letters…need to edit macro to check for both

Sheet Scoring Sheet
G8: Midwinters East Championship | S8: Orange Peel Regatta
G9: St. Petersburg Yacht Club | S9: The Florida Yacht Club
G10: March 3-7, 2014 | S10: March 22-23, 2014
A12: Place | B12: MWE Sail # | C12: Peel Sail # | D12: Competitor | E12: Hometown | G12: 1 | H12: 2 | I12: 3 | J12: 4 | K12: 5 | L12: 6 | M12: 7 | N12: 8 | O12: Total | P12: W/1 Discard | Q12: MWE Finish | S12: 1 | T12: 2 | U12: 3 | V12: 4 | W12: 5 | X12: Series Score | Y12: Raw Sum | Z12: Races Count | AA12: Large 1 MWE | AB12: Large 2 MWE | AC12: Large 1 Peel | AD12: Large 2 Peel | AE12: Discard 1 | AF12: Discard 2
A13: Skipper Division
A14: =_xlfn.RANK.EQ(X14,$X$14:$X$24,1) ->  | B14: 3976 | C14: 3976 | D14: Greg Griffin | G14: 6 | H14: 2 | I14: 1 | J14: 1 | K14: 5 | L14: 1 | M14: 1 | N14: 2 | O14: =SUM(G14:N14) -> 19 | P14: =SUMIF(G14:N14,"<"&MAX(G14:N14)) -> 13 | S14: =IFERROR(IF(COUNT('Peel Raw Data'!E$1)=1,VLOOKUP($C14,'Peel Raw Data'!$B:$O,5,FALSE),""),"") -> 2 | T14: =IFERROR(IF(COUNT('Peel Raw Data'!F$1)=1,VLOOKUP($C14,'Peel Raw Data'!$B:$O,6,FALSE),""),"") -> 3 | U14: =IFERROR(IF(COUNT('Peel Raw Data'!H$1)=1,VLOOKUP($C14,'Peel Raw Data'!$B:$O,7,FALSE),""),"") ->  | V14: =IFERROR(IF(COUNT('Peel Raw Data'!I$1)=1,VLOOKUP($C14,'Peel Raw Data'!$B:$O,8,FALSE),""),"") ->  | W14: =IFERROR(IF(COUNT('Peel Raw Data'!J$1)=1,VLOOKUP($C14,'Peel Raw Data'!$B:$O,9,FALSE),""),"") ->  | X14: =IF((SUM(COUNT($G14:$N14),COUNT($S14:$W14)))<10,SUM($G14:$N14)+SUM($S14:$W14)-$AE14,SUM($G14:$N14)+SUM($S14:$W14)-$AE14-$AF14) -> 13 | Y14: =SUM(G14:N14,S14:W14) -> 24 | Z14: =SUM(COUNT($G14:$N14),COUNT($S14:$W14)) -> 10 | AA14: =IF(ISERR(LARGE($G14:$N14,1)),0,LARGE($G14:$N14,1)) -> 6 | AB14: =IF(ISERR(LARGE($G14:$N14,2)),0,LARGE($G14:$N14,2)) -> 5 | AC14: =IF(ISERR(LARGE($S14:$W14,1)),0,LARGE($S14:$W14,1)) -> 3 | AD14: =IF(ISERR(LARGE($S14:$W14,2)),0,LARGE($S14:$W14,2)) -> 2 | AE14: =LARGE(AA14:AD14,1) -> 6 | AF14: =LARGE(AA14:AD14,2) -> 5
A15: =_xlfn.RANK.EQ(X15,$X$14:$X$24,1) ->  | B15: 4035 | C15: 4035 | D15: Paul Abdullah | G15: 7 | H15: 6 | I15: 3 | J15: 2 | K15: 6 | L15: 7 | M15: 2 | N15: 6 | O15: 39 | P15: 25 | S15: =IFERROR(IF(COUNT('Peel Raw Data'!E$1)=1,VLOOKUP($C15,'Peel Raw Data'!$B:$O,5,FALSE),""),"") -> 1 | T15: =IFERROR(IF(COUNT('Peel Raw Data'!F$1)=1,VLOOKUP($C15,'Peel Raw Data'!$B:$O,6,FALSE),""),"") -> 1 | U15: =IFERROR(IF(COUNT('Peel Raw Data'!H$1)=1,VLOOKUP($C15,'Peel Raw Data'!$B:$O,7,FALSE),""),"") ->  | V15: =IFERROR(IF(COUNT('Peel Raw Data'!I$1)=1,VLOOKUP($C15,'Peel Raw Data'!$B:$O,8,FALSE),""),"") ->  | W15: =IFERROR(IF(COUNT('Peel Raw Data'!J$1)=1,VLOOKUP($C15,'Peel Raw Data'!$B:$O,9,FALSE),""),"") ->  | X15: 27 | Y15: 41 | Z15: =SUM(COUNT($G15:$N15),COUNT($S15:$W15)) -> 10 | AA15: 7 | AB15: 7 | AC15: 1 | AD15: 1 | AE15: =LARGE(AA15:AD15,1) -> 7 | AF15: =LARGE(AA15:AD15,2) -> 7
A16: =_xlfn.RANK.EQ(X16,$X$14:$X$24,1) ->  | B16: 779 | C16: 779 | D16: Kevin Bradley | G16: 2 | H16: 10 | I16: 10 | J16: 19 | K16: 3 | L16: 13 | M16: 13 | N16: 8 | O16: 78 | P16: 59 | S16: =IFERROR(IF(COUNT('Peel Raw Data'!E$1)=1,VLOOKUP($C16,'Peel Raw Data'!$B:$O,5,FALSE),""),"") -> 27 | T16: =IFERROR(IF(COUNT('Peel Raw Data'!F$1)=1,VLOOKUP($C16,'Peel Raw Data'!$B:$O,6,FALSE),""),"") -> 6 | U16: =IFERROR(IF(COUNT('Peel Raw Data'!H$1)=1,VLOOKUP($C16,'Peel Raw Data'!$B:$O,7,FALSE),""),"") ->  | V16: =IFERROR(IF(COUNT('Peel Raw Data'!I$1)=1,VLOOKUP($C16,'Peel Raw Data'!$B:$O,8,FALSE),""),"") ->  | W16: =IFERROR(IF(COUNT('Peel Raw Data'!J$1)=1,VLOOKUP($C16,'Peel Raw Data'!$B:$O,9,FALSE),""),"") ->  | X16: 65 | Y16: 111 | Z16: 10 | AA16: 19 | AB16: 13 | AC16: 27 | AD16: 6 | AE16: 27 | AF16: 19
A17: 4 | B17: 3652 | C17: 3652 | D17: Tom Hubbell | G17: 13 | H17: 14 | I17: 9 | J17: 9 | K17: 9 | L17: 6 | M17: 35 | N17: 5 | O17: 100 | P17: 65 | S17: =IFERROR(IF(COUNT('Peel Raw Data'!E$1)=1,VLOOKUP($C17,'Peel Raw Data'!$B:$O,5,FALSE),""),"") -> 11 | T17: =IFERROR(IF(COUNT('Peel Raw Data'!F$1)=1,VLOOKUP($C17,'Peel Raw Data'!$B:$O,6,FALSE),""),"") -> 8 | U17: =IFERROR(IF(COUNT('Peel Raw Data'!H$1)=1,VLOOKUP($C17,'Peel Raw Data'!$B:$O,7,FALSE),""),"") ->  | V17: =IFERROR(IF(COUNT('Peel Raw Data'!I$1)=1,VLOOKUP($C17,'Peel Raw Data'!$B:$O,8,FALSE),""),"") ->  | W17: =IFERROR(IF(COUNT('Peel Raw Data'!J$1)=1,VLOOKUP($C17,'Peel Raw Data'!$B:$O,9,FALSE),""),"") ->  | X17: 70 | Y17: 119 | Z17: 10 | AA17: 35 | AB17: 14 | AC17: 11 | AD17: 8 | AE17: 35 | AF17: 14
A18: =_xlfn.RANK.EQ(X18,$X$14:$X$24,1) ->  | B18: 870 | C18: 870 | D18: Stu Gulke | G18: 11 | H18: 15 | I18: 7 | J18: 8 | K18: 18 | L18: 9 | M18: 4 | N18: 13 | O18: 85 | P18: 67 | S18: =IFERROR(IF(COUNT('Peel Raw Data'!E$1)=1,VLOOKUP($C18,'Peel Raw Data'!$B:$O,5,FALSE),""),"") -> 7 | T18: =IFERROR(IF(COUNT('Peel Raw Data'!F$1)=1,VLOOKUP($C18,'Peel Raw Data'!$B:$O,6,FALSE),""),"") -> 11 | U18: =IFERROR(IF(COUNT('Peel Raw Data'!H$1)=1,VLOOKUP($C18,'Peel Raw Data'!$B:$O,7,FALSE),""),"") ->  | V18: =IFERROR(IF(COUNT('Peel Raw Data'!I$1)=1,VLOOKUP($C18,'Peel Raw Data'!$B:$O,8,FALSE),""),"") ->  | W18: =IFERROR(IF(COUNT('Peel Raw Data'!J$1)=1,VLOOKUP($C18,'Peel Raw Data'!$B:$O,9,FALSE),""),"") ->  | X18: 70 | Y18: 103 | Z18: 10 | AA18: 18 | AB18: 15 | AC18: 11 | AD18: 7 | AE18: 18 | AF18: 15
A19: 6 | B19: 4037 | C19: 4037 | D19: Downing Nightingdale | G19: 9 | H19: 7 | I19: 8 | J19: 17 | K19: 27 | L19: 11 | M19: 14 | N19: 35 | O19: 128 | P19: 93 | S19: =IFERROR(IF(COUNT('Peel Raw Data'!E$1)=1,VLOOKUP($C19,'Peel Raw Data'!$B:$O,5,FALSE),""),"") -> 8 | T19: =IFERROR(IF(COUNT('Peel Raw Data'!F$1)=1,VLOOKUP($C19,'Peel Raw Data'!$B:$O,6,FALSE),""),"") -> 9 | U19: =IFERROR(IF(COUNT('Peel Raw Data'!H$1)=1,VLOOKUP($C19,'Peel Raw Data'!$B:$O,7,FALSE),""),"") ->  | V19: =IFERROR(IF(COUNT('Peel Raw Data'!I$1)=1,VLOOKUP($C19,'Peel Raw Data'!$B:$O,8,FALSE),""),"") ->  | W19: =IFERROR(IF(COUNT('Peel Raw Data'!J$1)=1,VLOOKUP($C19,'Peel Raw Data'!$B:$O,9,FALSE),""),"") ->  | X19: 83 | Y19: 145 | Z19: 10 | AA19: 35 | AB19: 27 | AC19: 9 | AD19: 8 | AE19: 35 | AF19: 27
A20: 7 | B20: 3624 | C20: 3624 | D20: Gerry Christman | G20: 26 | H20: 25 | I20: 30 | J20: 23 | K20: 32 | L20: 24 | M20: 22 | N20: 35 | S20: 20 | T20: 16 | X20: 186
A21: 8 | B21: 4032 | C21: 4032 | D21: Sam Brauer | G21: 28 | H21: 30 | I21: 23 | J21: 26 | K21: 31 | L21: 20 | M21: 21 | N21: 21 | S21: 29 | T21: 19 | X21: 187
A22: =_xlfn.RANK.EQ(X22,$X$14:$X$24,1) ->  | B22: 4045 | C22: 4045 | D22: David Deptula | G22: 27 | H22: 28 | I22: 27 | J22: 13 | K22: 28 | L22: 35 | M22: 35 | N22: 35 | O22: =SUM(G22:N22) -> 228 | P22: =SUMIF(G22:N22,"<"&MAX(G22:N22)) -> 123 | S22: =IFERROR(IF(COUNT('Peel Raw Data'!E$1)=1,VLOOKUP($C22,'Peel Raw Data'!$B:$O,5,FALSE),""),"") -> 14 | T22: =IFERROR(IF(COUNT('Peel Raw Data'!F$1)=1,VLOOKUP($C22,'Peel Raw Data'!$B:$O,6,FALSE),""),"") -> 21 | U22: =IFERROR(IF(COUNT('Peel Raw Data'!H$1)=1,VLOOKUP($C22,'Peel Raw Data'!$B:$O,7,FALSE),""),"") ->  | V22: =IFERROR(IF(COUNT('Peel Raw Data'!I$1)=1,VLOOKUP($C22,'Peel Raw Data'!$B:$O,8,FALSE),""),"") ->  | W22: =IFERROR(IF(COUNT('Peel Raw Data'!J$1)=1,VLOOKUP($C22,'Peel Raw Data'!$B:$O,9,FALSE),""),"") ->  | X22: =IF((SUM(COUNT($G22:$N22),COUNT($S22:$W22)))<10,SUM($G22:$N22)+SUM($S22:$W22)-$AE22,SUM($G22:$N22)+SUM($S22:$W22)-$AE22-$AF22) -> 193 | Y22: =SUM(G22:N22,S22:W22) -> 263 | Z22: =SUM(COUNT($G22:$N22),COUNT($S22:$W22)) -> 10 | AA22: =IF(ISERR(LARGE($G22:$N22,1)),0,LARGE($G22:$N22,1)) -> 35 | AB22: =IF(ISERR(LARGE($G22:$N22,2)),0,LARGE($G22:$N22,2)) -> 35 | AC22: =IF(ISERR(LARGE($S22:$W22,1)),0,LARGE($S22:$W22,1)) -> 21 | AD22: =IF(ISERR(LARGE($S22:$W22,2)),0,LARGE($S22:$W22,2)) -> 14 | AE22: =LARGE(AA22:AD22,1) -> 35 | AF22: =LARGE(AA22:AD22,2) -> 35
A23: 10 | B23: 4023 | C23: 4023 | D23: Edward John | G23: 30 | H23: 34 | I23: 31 | J23: 30 | K23: 25 | L23: 28 | M23: 23 | N23: 24 | S23: 26 | T23: 25 | X23: 211
A25: Open Division
A26: =_xlfn.RANK.EQ(X26,$X$26:$X$39,1) ->  | B26: 3976 | C26: 3976 | D26: Mark Reddaway | G26: 6 | H26: 2 | I26: 1 | J26: 1 | K26: 5 | L26: 1 | M26: 1 | N26: 2 | O26: =SUM(G26:N26) -> 19 | P26: 22 | S26: =IFERROR(IF(COUNT('Peel Raw Data'!E$1)=1,VLOOKUP($C26,'Peel Raw Data'!$B:$O,5,FALSE),""),"") -> 2 | T26: =IFERROR(IF(COUNT('Peel Raw Data'!F$1)=1,VLOOKUP($C26,'Peel Raw Data'!$B:$O,6,FALSE),""),"") -> 3 | U26: =IFERROR(IF(COUNT('Peel Raw Data'!H$1)=1,VLOOKUP($C26,'Peel Raw Data'!$B:$O,7,FALSE),""),"") ->  | V26: =IFERROR(IF(COUNT('Peel Raw Data'!I$1)=1,VLOOKUP($C26,'Peel Raw Data'!$B:$O,8,FALSE),""),"") ->  | W26: =IFERROR(IF(COUNT('Peel Raw Data'!J$1)=1,VLOOKUP($C26,'Peel Raw Data'!$B:$O,9,FALSE),""),"") ->  | X26: =IF((SUM(COUNT($G26:$N26),COUNT($S26:$W26)))<10,SUM($G26:$N26)+SUM($S26:$W26)-$AE26,SUM($G26:$N26)+SUM($S26:$W26)-$AE26-$AF26) -> 13 | Y26: =SUM(G26:N26,S26:W26) -> 24 | Z26: 10 | AA26: =IF(ISERR(LARGE($G26:$N26,1)),0,LARGE($G26:$N26,1)) -> 6 | AB26: =IF(ISERR(LARGE($G26:$N26,2)),0,LARGE($G26:$N26,2)) -> 5 | AC26: =IF(ISERR(LARGE($S26:$W26,1)),0,LARGE($S26:$W26,1)) -> 3 | AD26: =IF(ISERR(LARGE($S26:$W26,2)),0,LARGE($S26:$W26,2)) -> 2 | AE26: =LARGE(AA26:AD26,1) -> 6 | AF26: =LARGE(AA26:AD26,2) -> 5
A27: =_xlfn.RANK.EQ(X27,$X$26:$X$39,1) ->  | B27: 3976 | C27: 3976 | D27: Ryanne Gallagher | G27: 6 | H27: 2 | I27: 1 | J27: 1 | K27: 5 | L27: 1 | M27: 1 | N27: 2 | O27: 19 | P27: 22 | S27: =IFERROR(IF(COUNT('Peel Raw Data'!E$1)=1,VLOOKUP($C27,'Peel Raw Data'!$B:$O,5,FALSE),""),"") -> 2 | T27: =IFERROR(IF(COUNT('Peel Raw Data'!F$1)=1,VLOOKUP($C27,'Peel Raw Data'!$B:$O,6,FALSE),""),"") -> 3 | U27: =IFERROR(IF(COUNT('Peel Raw Data'!H$1)=1,VLOOKUP($C27,'Peel Raw Data'!$B:$O,7,FALSE),""),"") ->  | V27: =IFERROR(IF(COUNT('Peel Raw Data'!I$1)=1,VLOOKUP($C27,'Peel Raw Data'!$B:$O,8,FALSE),""),"") ->  | W27: =IFERROR(IF(COUNT('Peel Raw Data'!J$1)=1,VLOOKUP($C27,'Peel Raw Data'!$B:$O,9,FALSE),""),"") ->  | X27: 13 | Y27: 24 | Z27: 10 | AA27: 6 | AB27: 5 | AC27: 3 | AD27: 2 | AE27: =LARGE(AA27:AD27,1) -> 6 | AF27: =LARGE(AA27:AD27,2) -> 5
A28: =_xlfn.RANK.EQ(X28,$X$26:$X$39,1) ->  | B28: 4035 | C28: 4035 | D28: Marie Thompson | G28: 7 | H28: 6 | I28: 3 | J28: 2 | K28: 6 | L28: 7 | M28: 2 | N28: 6 | O28: 39 | P28: 20 | S28: =IFERROR(IF(COUNT('Peel Raw Data'!E$1)=1,VLOOKUP($C28,'Peel Raw Data'!$B:$O,5,FALSE),""),"") -> 1 | T28: =IFERROR(IF(COUNT('Peel Raw Data'!F$1)=1,VLOOKUP($C28,'Peel Raw Data'!$B:$O,6,FALSE),""),"") -> 1 | U28: =IFERROR(IF(COUNT('Peel Raw Data'!H$1)=1,VLOOKUP($C28,'Peel Raw Data'!$B:$O,7,FALSE),""),"") ->  | V28: =IFERROR(IF(COUNT('Peel Raw Data'!I$1)=1,VLOOKUP($C28,'Peel Raw Data'!$B:$O,8,FALSE),""),"") ->  | W28: =IFERROR(IF(COUNT('Peel Raw Data'!J$1)=1,VLOOKUP($C28,'Peel Raw Data'!$B:$O,9,FALSE),""),"") ->  | X28: 27 | Y28: 41 | Z28: 10 | AA28: 7 | AB28: 7 | AC28: 1 | AD28: 1 | AE28: 7 | AF28: 7
A29: 4 | B29: 4033 | C29: 3997 | D29: Abby Freeman | G29: 5 | H29: 5 | I29: 4 | J29: 4 | K29: 4 | L29: 3 | M29: 7 | N29: 7 | S29: 15 | T29: 2 | X29: 34
A30: 5 | B30: 3945 | C30: 4045 | D30: Jack Finefrock | G30: 1 | H30: 8 | I30: 19 | J30: 5 | K30: 10 | L30: 4 | M30: 3 | N30: 15 | O30: =SUM(G30:N30) -> 65 | P30: 17 | S30: =IFERROR(IF(COUNT('Peel Raw Data'!E$1)=1,VLOOKUP($C30,'Peel Raw Data'!$B:$O,5,FALSE),""),"") -> 14 | T30: =IFERROR(IF(COUNT('Peel Raw Data'!F$1)=1,VLOOKUP($C30,'Peel Raw Data'!$B:$O,6,FALSE),""),"") -> 21 | U30: =IFERROR(IF(COUNT('Peel Raw Data'!H$1)=1,VLOOKUP($C30,'Peel Raw Data'!$B:$O,7,FALSE),""),"") ->  | V30: =IFERROR(IF(COUNT('Peel Raw Data'!I$1)=1,VLOOKUP($C30,'Peel Raw Data'!$B:$O,8,FALSE),""),"") ->  | W30: =IFERROR(IF(COUNT('Peel Raw Data'!J$1)=1,VLOOKUP($C30,'Peel Raw Data'!$B:$O,9,FALSE),""),"") ->  | X30: =IF((SUM(COUNT($G30:$N30),COUNT($S30:$W30)))<10,SUM($G30:$N30)+SUM($S30:$W30)-$AE30,SUM($G30:$N30)+SUM($S30:$W30)-$AE30-$AF30) -> 60 | Y30: =SUM(G30:N30,S30:W30) -> 100 | Z30: =SUM(COUNT($G30:$N30),COUNT($S30:$W30)) -> 10 | AA30: =IF(ISERR(LARGE($G30:$N30,1)),0,LARGE($G30:$N30,1)) -> 19 | AB30: =IF(ISERR(LARGE($G30:$N30,2)),0,LARGE($G30:$N30,2)) -> 15 | AC30: =IF(ISERR(LARGE($S30:$W30,1)),0,LARGE($S30:$W30,1)) -> 21 | AD30: =IF(ISERR(LARGE($S30:$W30,2)),0,LARGE($S30:$W30,2)) -> 14 | AE30: =LARGE(AA30:AD30,1) -> 21 | AF30: =LARGE(AA30:AD30,2) -> 19
A31: 6 | B31: 870 | C31: 870 | D31: Chris Alexander | G31: 11 | H31: 15 | I31: 7 | J31: 8 | K31: 18 | L31: 9 | M31: 4 | N31: 13 | S31: 7 | T31: 11 | X31: 70
A32: 6 | B32: 3652 | C32: 3652 | D32: Kathy Duckworth | G32: 13 | H32: 14 | I32: 9 | J32: 9 | K32: 9 | L32: 6 | M32: 35 | N32: 5 | O32: 100 | P32: 39 | S32: =IFERROR(IF(COUNT('Peel Raw Data'!E$1)=1,VLOOKUP($C32,'Peel Raw Data'!$B:$O,5,FALSE),""),"") -> 11 | T32: =IFERROR(IF(COUNT('Peel Raw Data'!F$1)=1,VLOOKUP($C32,'Peel Raw Data'!$B:$O,6,FALSE),""),"") -> 8 | U32: =IFERROR(IF(COUNT('Peel Raw Data'!H$1)=1,VLOOKUP($C32,'Peel Raw Data'!$B:$O,7,FALSE),""),"") ->  | V32: =IFERROR(IF(COUNT('Peel Raw Data'!I$1)=1,VLOOKUP($C32,'Peel Raw Data'!$B:$O,8,FALSE),""),"") ->  | W32: =IFERROR(IF(COUNT('Peel Raw Data'!J$1)=1,VLOOKUP($C32,'Peel Raw Data'!$B:$O,9,FALSE),""),"") ->  | X32: 70 | Y32: 119 | Z32: 10 | AA32: 35 | AB32: 14 | AC32: 11 | AD32: 8 | AE32: 35 | AF32: 14
A33: 8 | B33: 4037 | C33: 3997 | D33: Bill Wiggins | G33: 9 | H33: 7 | I33: 8 | J33: 17 | K33: 27 | L33: 11 | M33: 14 | N33: 35 | O33: 128 | P33: 62 | S33: =IFERROR(IF(COUNT('Peel Raw Data'!E$1)=1,VLOOKUP($C33,'Peel Raw Data'!$B:$O,5,FALSE),""),"") -> 15 | T33: =IFERROR(IF(COUNT('Peel Raw Data'!F$1)=1,VLOOKUP($C33,'Peel Raw Data'!$B:$O,6,FALSE),""),"") -> 2 | U33: =IFERROR(IF(COUNT('Peel Raw Data'!H$1)=1,VLOOKUP($C33,'Peel Raw Data'!$B:$O,7,FALSE),""),"") ->  | V33: =IFERROR(IF(COUNT('Peel Raw Data'!I$1)=1,VLOOKUP($C33,'Peel Raw Data'!$B:$O,8,FALSE),""),"") ->  | W33: =IFERROR(IF(COUNT('Peel Raw Data'!J$1)=1,VLOOKUP($C33,'Peel Raw Data'!$B:$O,9,FALSE),""),"") ->  | X33: 83 | Y33: 145 | Z33: 10 | AA33: 35 | AB33: 27 | AC33: 15 | AD33: 2 | AE33: 35 | AF33: 27
A34: 8 | B34: 4037 | C34: 4037 | D34: Kayla Bennett | G34: 9 | H34: 7 | I34: 8 | J34: 17 | K34: 27 | L34: 11 | M34: 14 | N34: 35 | O34: 128 | P34: 67 | S34: =IFERROR(IF(COUNT('Peel Raw Data'!E$1)=1,VLOOKUP($C34,'Peel Raw Data'!$B:$O,5,FALSE),""),"") -> 8 | T34: =IFERROR(IF(COUNT('Peel Raw Data'!F$1)=1,VLOOKUP($C34,'Peel Raw Data'!$B:$O,6,FALSE),""),"") -> 9 | U34: =IFERROR(IF(COUNT('Peel Raw Data'!H$1)=1,VLOOKUP($C34,'Peel Raw Data'!$B:$O,7,FALSE),""),"") ->  | V34: =IFERROR(IF(COUNT('Peel Raw Data'!I$1)=1,VLOOKUP($C34,'Peel Raw Data'!$B:$O,8,FALSE),""),"") ->  | W34: =IFERROR(IF(COUNT('Peel Raw Data'!J$1)=1,VLOOKUP($C34,'Peel Raw Data'!$B:$O,9,FALSE),""),"") ->  | X34: 83 | Y34: 145 | Z34: 10 | AA34: 35 | AB34: 27 | AC34: 9 | AD34: 8 | AE34: 35 | AF34: 27
A35: 10 | B35: 1473 | C35: 3841 | D35: Brad Russell | G35: 15 | H35: 13 | I35: 5 | J35: 7 | K35: 20 | L35: 10 | M35: 35 | N35: 35 | O35: 140 | P35: 62 | S35: =IFERROR(IF(COUNT('Peel Raw Data'!E$1)=1,VLOOKUP($C35,'Peel Raw Data'!$B:$O,5,FALSE),""),"") -> 23 | T35: =IFERROR(IF(COUNT('Peel Raw Data'!F$1)=1,VLOOKUP($C35,'Peel Raw Data'!$B:$O,6,FALSE),""),"") -> 7 | U35: =IFERROR(IF(COUNT('Peel Raw Data'!H$1)=1,VLOOKUP($C35,'Peel Raw Data'!$B:$O,7,FALSE),""),"") ->  | V35: =IFERROR(IF(COUNT('Peel Raw Data'!I$1)=1,VLOOKUP($C35,'Peel Raw Data'!$B:$O,8,FALSE),""),"") ->  | W35: =IFERROR(IF(COUNT('Peel Raw Data'!J$1)=1,VLOOKUP($C35,'Peel Raw Data'!$B:$O,9,FALSE),""),"") ->  | X35: 100 | Y35: 170 | Z35: 10 | AA35: 35 | AB35: 35 | AC35: 23 | AD35: 7 | AE35: 35 | AF35: 35
A36: 11 | B36: 3849 | C36: 3725 | D36: Craig Ambler | G36: 19 | H36: 16 | I36: 20 | J36: 21 | K36: 14 | L36: 14 | M36: 18 | N36: 11 | S36: 5 | T36: 17 | X36: 114
A37: 11 | B37: 3849 | C37: 3725 | D37: Diana Young-Paiva | G37: 19 | H37: 16 | I37: 20 | J37: 21 | K37: 14 | L37: 14 | M37: 18 | N37: 11 | O37: =SUM(G37:N37) -> 133 | P37: 20 | S37: =IFERROR(IF(COUNT('Peel Raw Data'!E$1)=1,VLOOKUP($C37,'Peel Raw Data'!$B:$O,5,FALSE),""),"") -> 5 | T37: =IFERROR(IF(COUNT('Peel Raw Data'!F$1)=1,VLOOKUP($C37,'Peel Raw Data'!$B:$O,6,FALSE),""),"") -> 17 | U37: =IFERROR(IF(COUNT('Peel Raw Data'!H$1)=1,VLOOKUP($C37,'Peel Raw Data'!$B:$O,7,FALSE),""),"") ->  | V37: =IFERROR(IF(COUNT('Peel Raw Data'!I$1)=1,VLOOKUP($C37,'Peel Raw Data'!$B:$O,8,FALSE),""),"") ->  | W37: =IFERROR(IF(COUNT('Peel Raw Data'!J$1)=1,VLOOKUP($C37,'Peel Raw Data'!$B:$O,9,FALSE),""),"") ->  | X37: =IF((SUM(COUNT($G37:$N37),COUNT($S37:$W37)))<10,SUM($G37:$N37)+SUM($S37:$W37)-$AE37,SUM($G37:$N37)+SUM($S37:$W37)-$AE37-$AF37) -> 114 | Y37: =SUM(G37:N37,S37:W37) -> 155 | Z37: =SUM(COUNT($G37:$N37),COUNT($S37:$W37)) -> 10 | AA37: =IF(ISERR(LARGE($G37:$N37,1)),0,LARGE($G37:$N37,1)) -> 21 | AB37: =IF(ISERR(LARGE($G37:$N37,2)),0,LARGE($G37:$N37,2)) -> 20 | AC37: =IF(ISERR(LARGE($S37:$W37,1)),0,LARGE($S37:$W37,1)) -> 17 | AD37: =IF(ISERR(LARGE($S37:$W37,2)),0,LARGE($S37:$W37,2)) -> 5 | AE37: =LARGE(AA37:AD37,1) -> 21 | AF37: =LARGE(AA37:AD37,2) -> 20
A38: 13 | B38: 1473 | C38: 3709 | D38: Catherine Ryals | G38: 15 | H38: 13 | I38: 5 | J38: 7 | K38: 20 | L38: 10 | M38: 35 | N38: 35 | O38: =SUM(G38:N38) -> 140 | P38: 67 | S38: =IFERROR(IF(COUNT('Peel Raw Data'!E$1)=1,VLOOKUP($C38,'Peel Raw Data'!$B:$O,5,FALSE),""),"") -> 24 | T38: =IFERROR(IF(COUNT('Peel Raw Data'!F$1)=1,VLOOKUP($C38,'Peel Raw Data'!$B:$O,6,FALSE),""),"") -> 22 | U38: =IFERROR(IF(COUNT('Peel Raw Data'!H$1)=1,VLOOKUP($C38,'Peel Raw Data'!$B:$O,7,FALSE),""),"") ->  | V38: =IFERROR(IF(COUNT('Peel Raw Data'!I$1)=1,VLOOKUP($C38,'Peel Raw Data'!$B:$O,8,FALSE),""),"") ->  | W38: =IFERROR(IF(COUNT('Peel Raw Data'!J$1)=1,VLOOKUP($C38,'Peel Raw Data'!$B:$O,9,FALSE),""),"") ->  | X38: =IF((SUM(COUNT($G38:$N38),COUNT($S38:$W38)))<10,SUM($G38:$N38)+SUM($S38:$W38)-$AE38,SUM($G38:$N38)+SUM($S38:$W38)-$AE38-$AF38) -> 116 | Y38: =SUM(G38:N38,S38:W38) -> 186 | Z38: =SUM(COUNT($G38:$N38),COUNT($S38:$W38)) -> 10 | AA38: =IF(ISERR(LARGE($G38:$N38,1)),0,LARGE($G38:$N38,1)) -> 35 | AB38: =IF(ISERR(LARGE($G38:$N38,2)),0,LARGE($G38:$N38,2)) -> 35 | AC38: =IF(ISERR(LARGE($S38:$W38,1)),0,LARGE($S38:$W38,1)) -> 24 | AD38: =IF(ISERR(LARGE($S38:$W38,2)),0,LARGE($S38:$W38,2)) -> 22 | AE38: =LARGE(AA38:AD38,1) -> 35 | AF38: =LARGE(AA38:AD38,2) -> 35
A39: 14 | B39: 3624 | C39: 3624 | D39: Phillip Christman | G39: 26 | H39: 25 | I39: 30 | J39: 23 | K39: 32 | L39: 24 | M39: 22 | N39: 35 | S39: 20 | T39: 16 | X39: 186
A40: 15 | B40: 4032 | C40: 4032 | D40: Sveinn Bragason | G40: 28 | H40: 30 | I40: 23 | J40: 26 | K40: 31 | L40: 20 | M40: 21 | N40: 21 | S40: 29 | T40: 19 | X40: 187
A41: 16 | B41: 4045 | C41: 4045 | D41: Sally Rusk | G41: 27 | H41: 28 | I41: 27 | J41: 13 | K41: 28 | L41: 35 | M41: 35 | N41: 35 | S41: 14 | T41: 21 | X41: 193
A42: 17 | B42: 4023 | C42: 4023 | D42: Tory Gibbs | G42: 30 | H42: 34 | I42: 31 | J42: 30 | K42: 25 | L42: 28 | M42: 23 | N42: 24 | S42: 26 | T42: 25 | X42: 211

Sheet Peel Raw Data
A1: Pos | B1: Sail | C1: Boat | D1: Skipper | E1: 1 | F1: 2 | G1: Total
A2: Points | B2: Pos
A3: 1 | B3: 4035 | D3: Abdullah, Paul | E3: 1 | F3: 1 | G3: 1 | H3: 1
A4: 2 | B4: 3976 | D4: Griffin, Greg | E4: 2 | F4: 2 | G4: 3 | H4: 2
A5: 3 | B5: 3854 | D5: Vanderhorst, Surge | E5: 9 | F5: 9 | G5: 4 | H5: 3
A6: 4 | B6: 1915 | D6: Adams, Sean | E6: 10 | F6: 10 | G6: 5 | H6: 4
A7: 5 | B7: 3997 | D7: Griffin, Scott | E7: 15 | F7: 15 | G7: 2 | H7: 5
A8: 6 | B8: 4037 | D8: Nightingale III, Downing | E8: 8 | F8: 8 | G8: 9 | H8: 6
A9: 7 | B9: 3985 | D9: Paisner, Sara | E9: 4 | F9: 4 | G9: 14 | H9: 7
A10: 8 | B10: 870 | D10: Grulke, Stu | E10: 7 | F10: 7 | G10: 11 | H10: 8
A11: 9 | B11: 3998 | D11: Roberts, Jim | E11: 6 | F11: 6 | G11: 13 | H11: 9
A12: 10 | B12: 3652 | D12: Hubbell, Tom | E12: 11 | F12: 11 | G12: 8 | H12: 10
A13: 11 | B13: 3725 | D13: Norton, John | E13: 5 | F13: 5 | G13: 17 | H13: 11
A14: 12 | B14: 3975 | D14: Ross, Mike | E14: 13 | F14: 13 | G14: 10 | H14: 12
A15: 13 | B15: 4007 | D15: Vaughan, Loy | E15: 12 | F15: 12 | G15: 15 | H15: 13
A16: 14 | B16: 1 | D16: Klotz, Chris | E16: 16 | F16: 16 | G16: 12 | H16: 14
A17: 15 | B17: 3841 | D17: Russell, Brad | E17: 23 | F17: 23 | G17: 7 | H17: 15
A18: 16 | B18: 3883 | D18: Reddaway, David | E18: 3 | F18: 3 | G18: 29 | H18: 16
A19: 17 | B19: 779 | D19: Bradley, Kevin | E19: 27 | F19: 27 | G19: 6 | H19: 17
A20: 18 | B20: 4045 | D20: Deptula, David | E20: 14 | F20: 14 | G20: 21 | H20: 18
A21: 19 | B21: 3624 | D21: Christman, Gerry | E21: 20 | F21: 20 | G21: 16 | H21: 19
A22: 20 | B22: 3579 | D22: Collins, Reid | E22: 17 | F22: 17 | G22: 20 | H22: 20
A23: 21 | B23: 3682 | D23: Vaughan, Graham | E23: 19 | F23: 19 | G23: 18 | H23: 21
A24: 22 | B24: 3739 | D24: Cardoze, Steven | E24: 18 | F24: 18 | G24: 24 | H24: 22
A25: 23 | B25: 3709 | D25: Derr, Bill | E25: 24 | F25: 24 | G25: 22 | H25: 23
A26: 24 | B26: 4032 | D26: Brauer, Sam | E26: 29 | F26: 29 | G26: 19 | H26: 24
A27: 25 | B27: 3905 | D27: Coker, Adam | E27: 22 | F27: 22 | G27: 26 | H27: 25
A28: 26 | B28: 3828 | D28: Russell, Dan | E28: 21 | F28: 21 | G28: 28 | H28: 26
A29: 27 | B29: 976 | D29: Fewell, Johnny | E29: 28 | F29: 28 | G29: 23 | H29: 27
A30: 28 | B30: 4023 | D30: John, Edward | E30: 26 | F30: 26 | G30: 25 | H30: 28
A31: 29 | B31: 4031 | D31: Wagner, Larry | E31: 30 | F31: 30 | G31: 27 | H31: 29
A32: 30 | B32: 3600 | D32: Glenn, Tommy | E32: 25 | F32: 25 | G32: 33 | H32: 30
A33: 31 | B33: 1995 | D33: Graham, Laura | E33: 31 | F33: 31 | G33: 30 | H33: 31
A34: 32 | B34: 3868 | D34: Woodard, Amy | E34: 32 | F34: 32 | G34: 33 | H34: 32

Sheet Original Sheet
F8: Midwinters East Championship | Q8: Orange Peel Regatta
F9: St. Petersburg Yacht Club | Q9: The Florida Yacht Club
F10: March 2-8, 2013 | Q10: March 22-24, 2013
A12: Place | B12: Sail # | C12: Competitor | D12: Hometown | F12: 1 | G12: 2 | H12: 3 | I12: 4 | J12: 5 | K12: 6 | L12: 7 | M12: Total | N12: W/1 Discard | O12: MWE Finish | Q12: 1 | R12: 2 | S12: 3 | T12: 4 | U12: 5 | V12: Series Total
A13: Skipper Division
A14: 1 | B14: 4034 | C14: Skip Dieball | D14: Rochester, NY | F14: 1 | G14: 4 | H14: 4 | I14: 1 | J14: 2 | K14: 1 | L14: 2 | M14: =SUM(F14:L14) -> 15 | N14: =SUMIF(F14:L14,"<"&MAX(F14:L14)) -> 7 | O14: 2
A15: 2 | B15: 3969 | C15: Mike Ingham | D15: Taylors, SC | E15: Jacksonville, FL | F15: 6 | G15: 10 | H15: 1 | I15: 2 | J15: 6 | K15: 3 | L15: 1 | M15: =SUM(F15:L15) -> 29 | N15: =SUMIF(F15:L15,"<"&MAX(F15:L15)) -> 19 | O15: 4
A16: 3 | B16: 3839 | C16: Allan Terhune | D16: Jacksonville, FL | E16: Mason, OH | F16: 2 | G16: 14 | H16: 2 | I16: 4 | J16: 1 | K16: 4 | L16: 8 | M16: =SUM(F16:L16) -> 35 | N16: 21 | O16: 3
A17: 4 | B17: 3901 | C17: Paul Abdullah | D17: Charleston, SC | E17: Nashville, TN | F17: 14 | G17: 13 | H17: 5 | I17: 3 | J17: 3 | K17: 2 | L17: 3 | M17: =SUM(F17:L17) -> 43 | N17: 29 | O17: 5
A18: 5 | B18: 3841 | C18: Brad Russell | D18: Bloomington, IL | F18: 3 | G18: 1 | H18: 9 | I18: 19 | J18: 8 | K18: 5.3 | L18: 5 | M18: =SUM(F18:L18) -> 50.3 | N18: =SUMIF(F18:L18,"<"&MAX(F18:L18)) -> 31.3 | O18: 15
A19: 7 | B19: 4017 | C19: Chris Klotz | D19: Asheville, NC | E19: St. Petersburg, FL | F19: 7 | G19: 19 | H19: 8 | I19: 9 | J19: 9 | K19: 7 | L19: 6 | M19: =SUM(F19:L19) -> 65 | N19: =SUMIF(F19:L19,"<"&MAX(F19:L19)) -> 46 | O19: 16
A20: 10 | B20: 3810 | C20: Tom Hubbell | E20: Leawood, KS | F20: 39 | G20: 2 | H20: 13 | I20: 24 | J20: 7 | K20: 5 | L20: 10 | M20: 100 | N20: =SUMIF(F20:L20,"<"&MAX(F20:L20)) -> 61 | O20: 24
A21: 11 | B21: 844 | C21: Craig Koschalk | E21: Charleston, SC | F21: 20 | G21: 45 | H21: 11 | I21: 5 | J21: 5 | K21: 10.3 | L21: 10.3 | M21: 106.6 | N21: 61.6 | O21: 26
A22: 12 | B22: 3624 | C22: Michael Gillian | E22: Newark, DE | F22: 25 | G22: 7 | H22: 12 | I22: 15 | J22: 17 | K22: 23 | L22: 21 | M22: 120 | N22: 95 | O22: 31
A23: 13 | B23: 16 | C23: Dan Russell, & Kelly Holleran | E23: Baltimore, MD | F23: 28 | G23: 21 | H23: 28 | I23: 27 | J23: 13 | K23: 27 | L23: 20 | M23: 164 | N23: 108 | O23: 36
A24: 14 | B24: 4031 | C24: Downing Nightingale | D24: Birmingham, AL | E24: Jacksonville, FL | F24: 18 | G24: 45 | H24: 22 | I24: 13 | J24: 20 | K24: 18.3 | L24: 28 | M24: =SUM(F24:L24) -> 164.3 | N24: =SUMIF(F24:L24,"<"&MAX(F24:L24)) -> 119.3 | O24: 22
A25: 15 | B25: 3682 | C25: Graham Vaughan | E25: Townsend,DE | F25: 24 | G25: 35 | H25: 29 | I25: 33 | J25: 25 | K25: 26 | L25: 30 | M25: =SUM(F25:L25) -> 202 | N25: =SUMIF(F25:L25,"<"&MAX(F25:L25)) -> 167 | O25: 30
A26: 16 | B26: 1329 | C26: Scott Latham | E26: 30 | F26: 16 | G26: 30 | H26: 27 | I26: 20 | J26: 31 | K26: 45 | L26: 37 | M26: 206 | N26: 161 | O26: 37
A27: 17 | B27: 3735 | C27: John Hutt, Max Hutt & Mark Pytel | F27: 36 | G27: 41 | H27: 31 | I27: 35 | J27: 37 | K27: 38 | L27: 31
A28: 18 | B28: 4023 | C28: Edward John | F28: 33 | G28: 38 | H28: 40 | I28: 42 | J28: 42 | K28: 39 | L28: 42
A29: 19 | B29: 16 | C29: David Deptula | E29: Lizella, GA | F29: 42 | G29: 40 | H29: 41 | I29: 41 | J29: 41 | K29: 37 | L29: 38 | M29: 280 | N29: =SUMIF(F29:L29,"<"&MAX(F29:L29)) -> 238 | O29: 39
A30: Open Division
A31: 1 | B31: 4034 | C31: Abby Freeman | D31: Jacksonville, FL | F31: 1 | G31: 4 | H31: 4 | I31: 1 | J31: 2 | K31: 1 | L31: 2 | M31: =SUM(F31:L31) -> 15 | N31: 22 | O31: 4
A32: 1 | B32: 4034 | C32: Jeff Eiber | D32: Jacksonville, FL | F32: 1 | G32: 4 | H32: 4 | I32: 1 | J32: 2 | K32: 1 | L32: 2 | M32: =SUM(F32:L32) -> 15 | N32: 22 | O32: 4
A33: 3 | B33: 3839 | C33: Katie Terhune | D33: Columbus, OH | F33: 2 | G33: 14 | H33: 2 | I33: 4 | J33: 1 | K33: 4 | L33: 8 | M33: =SUM(F33:L33) -> 35 | N33: 20 | O33: 3
A34: 4 | B34: 3841 | C34: Christy Illius | D34: Columbus, OH | F34: 3 | G34: 1 | H34: 9 | I34: 19 | J34: 8 | K34: 5.3 | L34: 5 | M34: 50.3 | N34: 20 | O34: 3
A35: 4 | B35: 3841 | C35: Mark Gise | E35: Kansas City, MO | F35: 3 | G35: 1 | H35: 9 | I35: 19 | J35: 8 | K35: 5.3 | L35: 5 | M35: =SUM(F35:L35) -> 50.3 | N35: 17 | O35: 2
A36: 6 | B36: 4017 | C36: Antoinette Klotz | E36: ? | F36: 7 | G36: 19 | H36: 8 | I36: 9 | J36: 9 | K36: 7 | L36: 6 | M36: 65 | N36: =SUMIF(F36:L36,"<"&MAX(F36:L36)) -> 46 | O36: 5
A37: 6 | B37: 4017/3901 | C37: Chris LaBorde | E37: Charleston, SC | F37: 7 | G37: 19 | H37: 8 | I37: 9 | J37: 9 | K37: 7 | L37: 6 | M37: 65 | N37: 62 | O37: 15
A38: 8 | B38: 4033/3976 | C38: Jessica Bradburn | D38: Akron, OH | E38: Glendale, MO | F38: 4 | G38: 18 | H38: 23 | I38: 11 | J38: 10 | K38: 10.8 | L38: 13 | M38: 89.8 | N38: 39 | O38: 10
A39: 8 | B39: 3652 | C39: Christine Rice | D39: Toledo, OH | E39: Knoxville, TN | F39: 39 | G39: 2 | H39: 13 | I39: 24 | J39: 7 | K39: 5 | L39: 10 | M39: 100 | N39: 39 | O39: 10
A40: 8 | B40: 3652 | C40: John Yingling | D40: Charlestown, MA | F40: 39 | G40: 2 | H40: 13 | I40: 24 | J40: 7 | K40: 5 | L40: 10 | M40: 100 | N40: 62 | O40: 14
A41: 11 | B41: 4028 | C41: Lauren O'Hara | E41: St. Petersburg, FL | F41: 20 | G41: 45 | H41: 11 | I41: 5 | J41: 5 | K41: 10.3 | L41: 10.3 | M41: 106.6 | N41: 67 | O41: 16
A42: 12 | B42: 4028 | C42: Karl Felger | D42: Charlestown, MA | F42: 20 | G42: 45 | H42: 11 | I42: 5 | J42: 5 | K42: 10.3 | L42: 10.3 | M42: 106.6 | N42: 67 | O42: 12
A43: 13 | B43: 821 /844 | C43: Beryl Foster | D43: Jacksonville, FL | F43: 25 | G43: 7 | H43: 12 | I43: 15 | J43: 17 | K43: 23 | L43: 21 | M43: =SUM(F43:L43) -> 120 | N43: 43 | O43: 9
A44: 16 | B44: 3845 | C44: Kevin Tschantz | D44: Akron, OH | E44: Las Vegas, NV | F44: 15 | G44: 16 | H44: 7 | I44: 21 | J44: 21 | K44: 20 | L44: 14 | M44: 114 | N44: 107 | O44: 20
A45: 17 | B45: 3828 | C45: Bill Wiggins | D45: Knoxville, TN | E45: Jacksonville, FL | F45: 28 | G45: 21 | H45: 28 | I45: 27 | J45: 13 | K45: 27 | L45: 20 | M45: 164 | N45: 127 | O45: 22
A46: 18 | B46: 4032 | C46: Kayla Bennett | D46: Tom & "B" | E46: Chaleston, SC | F46: 18 | G46: 45 | H46: 22 | I46: 13 | J46: 20 | K46: 18.3 | L46: 28 | M46: 164.3 | N46: 151 | O46: 26
A47: 19 | B47: 4032 | C47: Dan Borrer | D47: Bloomington, IL | F47: 18 | G47: 45 | H47: 22 | I47: 13 | J47: 20 | K47: 18.3 | L47: 28 | M47: 164.3 | N47: 163 | O47: 31
A48: 20 | B48: 3810/4028 | C48: Tim Fitzgerald | D48: Hixson, TN | E48: ? | F48: 12 | G48: 24 | H48: 33 | I48: 29 | J48: 29 | K48: 19 | L48: 19 | M48: =SUM(F48:L48) -> 165 | N48: 133 | O48: 23
A49: 21 | B49: 3682/3464 | C49: Suzanne Kissel | F49: 24 | G49: 35 | H49: 29 | I49: 33 | J49: 25 | K49: 26 | L49: 30
A50: 22 | B50: 1329 | C50: Aaron Holland | F50: 16 | G50: 30 | H50: 27 | I50: 20 | J50: 31 | K50: 45 | L50: 37 | M50: 206 | N50: 219 | O50: 39
B51: 3732/3579 | C51: Eleanor Newnham | F51: 34 | G51: 12 | H51: 37 | I51: 36 | J51: 33 | K51: 29 | L51: 27
B52: 4023 | C52: Victoria Gibb | F52: 33 | G52: 38 | H52: 40 | I52: 42 | J52: 42 | K52: 39 | L52: 42
B53: 16 | C53: Sally Rusk | F53: 42 | G53: 40 | H53: 41 | I53: 41 | J53: 41 | K53: 37 | L53: 38

Sheet MWE Results
A1: St. Petersburg Yacht Club
A2: 2014 Thistles Midwinters East Regatta
A3: January 16-21, 2014
A4: Final
A5: All BoatsSeries Summary
A6: Pl | B6: Sail | C6: Crew | D6: Tot | E6: 1 | F6: 2 | G6: 3 | H6: 4 | I6: 5 | J6: 6 | K6: 7 | L6: 8
A7: 1 | B7: 3976 | C7: G.Griffin | D7: 19 | E7: 6 | F7: 2 | G7: 1 | H7: 1 | I7: 5 | J7: 1 | K7: 1 | L7: 2
C8: M.Reddaway
C9: R.Gallagher
A10: 2 | B10: 3969 | C10: M.Ingham | D10: 27 | E10: 3 | F10: 1 | G10: 2 | H10: 3 | I10: 1 | J10: 2 | K10: 6 | L10: 9
C11: D.Stehle
C12: S.Paisley
A13: 3 | B13: 4035 | C13: P.Abdullah | D13: 39 | E13: 7 | F13: 6 | G13: 3 | H13: 2 | I13: 6 | J13: 7 | K13: 2 | L13: 6
C14: K.Felger
C15: M.Thompson
A16: 4 | B16: 4033 | C16: B.Swingly | D16: 39
C17: J.Eiber
C18: A.Freeman
A19: 5 | B19: 4028 | C19: C.Koschalk | D19: 60 | E19: 8 | F19: 3 | G19: 18 | H19: 18 | I19: 2 | J19: 5 | K19: 5 | L19: 1
C20: L.O'Hara
C21: J.Shedden
A22: 6 | B22: 3945 | C22: J.Finefrock | D22: 65 | E22: 1 | F22: 8 | G22: 19 | H22: 5 | I22: 10 | J22: 4 | K22: 3 | L22: 15
C23: K.Finefrock
C24: B.Weible
A25: 7 | B25: 779 | C25: K.Bradley | D25: 78 | E25: 2 | F25: 10 | G25: 10 | H25: 19 | I25: 3 | J25: 13 | K25: 13 | L25: 8
C26: E.Frissell
C27: M.Dubik
A28: 8 | B28: 870 | C28: S.Grulke | D28: 85 | E28: 11 | F28: 15 | G28: 7 | H28: 8 | I28: 18 | J28: 9 | K28: 4 | L28: 13
C29: C.Alexander
C30: B.Lebowski
A31: 9 | B31: 3874 | C31: J.Ridder | D31: 95 | E31: 4 | F31: 19 | G31: 14 | H31: 10 | I31: 8 | J31: 8 | K31: 15 | L31: 17
C32: E.Hardy
C33: L.Miller
A34: 10 | B34: 3889 | C34: C.Glover | D34: 97 | E34: 14 | F34: 11 | G34: 11 | H34: 12 | I34: 23 | J34: 12 | K34: 11 | L34: 3
C35: P.Nuechterlein
C36: K.Finefrock
A37: 11 | B37: 3652 | C37: T.Hubbell | D37: 100 | E37: 13 | F37: 14 | G37: 9 | H37: 9 | I37: 9 | J37: 6 | K37: 35\DNF | L37: 5
C38: K.Duckworth
C39: J.Yingling
A40: 12 | B40: 3869 | C40: D.HulseCo | D40: 104 | E40: 12 | F40: 18 | G40: 16 | H40: 11 | I40: 16 | J40: 18 | K40: 9 | L40: 4
C41: I.MarshCo
C42: A.Liggett
A43: 13 | B43: 821 | C43: L.Liggett | D43: 118 | E43: 25 | F43: 12 | G43: 6 | H43: 31 | I43: 7 | J43: 17 | K43: 8 | L43: 12
C44: B.Liggett
C45: L.vanWiggler
A46: 14 | B46: 3979 | C46: J. Gillian | D46: 118 | E46: 23 | F46: 20 | G46: 15 | H46: 6 | I46: 13 | J46: 21 | K46: 10 | L46: 10
C47: M.Gillian
C48: M.Gillian
A49: 15 | B49: 3858 | C49: B.Harrison | D49: 122 | E49: 17 | F49: 9 | G49: 17 | H49: 25 | I49: 11 | J49: 15 | K49: 12 | L49: 16
C50: R.Harrison
C51: M.Hennessy
A52: 16 | B52: 4037 | C52: D.NightingaleIII | D52: 128 | E52: 9 | F52: 7 | G52: 8 | H52: 17 | I52: 27 | J52: 11 | K52: 14 | L52: 35\DNS
C53: B.Wiggins
C54: K.Bennett
A55: 17 | B55: 3849 | C55: J.Howell | D55: 133 | E55: 19 | F55: 16 | G55: 20 | H55: 21 | I55: 14 | J55: 14 | K55: 18 | L55: 11
C56: D.Young-Paiva
C57: C.Ambler
A58: 18 | B58: 1473 | C58: K.Arrow | D58: 140 | E58: 15 | F58: 13 | G58: 5 | H58: 7 | I58: 20 | J58: 10 | K58: 35\DNC | L58: 35\DNC
C59: B.Russell
C60: C.Ryals
A61: 19 | B61: 4020 | C61: M.Calore | D61: 155 | E61: 18 | F61: 4 | G61: 22 | H61: 28 | I61: 21 | J61: 19 | K61: 25 | L61: 18
C62: M.Andrew
C63: A.Lagoutchev
A64: 20 | B64: 4003 | C64: M.McBride | D64: 166 | E64: 16 | F64: 22 | G64: 25 | H64: 27 | I64: 15 | J64: 22 | K64: 16 | L64: 23
C65: K.McBride
C66: K.Mahaney
A67: 21 | B67: 3664 | C67: W.Balsiger | D67: 171 | E67: 20 | F67: 17 | G67: 12 | H67: 15 | I67: 12 | J67: 25 | K67: 35\DNF | L67: 35\DNF
C68: A.Sanders
C69: J.Duckworth
A70: 22 | B70: 3952 | C70: E.McMaster | D70: 175 | E70: 21 | F70: 23 | G70: 32 | H70: 20 | I70: 24 | J70: 16 | K70: 20 | L70: 19
C71: S.Issler
C72: B.Jahic
A73: 23 | B73: 3973 | C73: B.McCutcheon | D73: 188 | E73: 10 | F73: 29 | G73: 13 | H73: 14 | I73: 29 | J73: 23 | K73: 35\DNC | L73: 35\DNC
C74: P.Metcalf
C75: F.Goetz
A76: 24 | B76: 3687 | C76: S.Buehler | D76: 193 | E76: 32 | F76: 26 | G76: 21 | H76: 29 | I76: 19 | J76: 29 | K76: 17 | L76: 20
C77: M.Farrugia
C78: D.Bower
A79: 25 | B79: 4026 | C79: M.Udell | D79: 197 | E79: 29 | F79: 24 | G79: 29 | H79: 34 | I79: 22 | J79: 26 | K79: 19 | L79: 14
C80: J.Hutt
C81: N.Luegers
A82: 26 | B82: 4032 | C82: S.Brauer | D82: 200 | E82: 28 | F82: 30 | G82: 23 | H82: 26 | I82: 31 | J82: 20 | K82: 21 | L82: 21
C83: S.Bragasson
C84: G.GarethEich
A85: 27 | B85: 3788 | C85: B.France | D85: 214 | E85: 24 | F85: 27 | G85: 28 | H85: 16 | I85: 17 | J85: 32 | K85: 35\DNF | L85: 35\DNF
C86: K.Tshantz
C87: C.Tshantz
A88: 28 | B88: 3624 | C88: G.Chistman | D88: 217 | E88: 26 | F88: 25 | G88: 30 | H88: 23 | I88: 32 | J88: 24 | K88: 22 | L88: 35\DNF
C89: P.Christman
C90: R.Wojnar
A91: 29 | B91: 4023 | C91: E.John | D91: 225 | E91: 30 | F91: 34 | G91: 31 | H91: 30 | I91: 25 | J91: 28 | K91: 23 | L91: 24
C92: T.Gibb
C93: J.Virden
A94: 30 | B94: 3856 | C94: R.Wood | D94: 226 | E94: 22 | F94: 33 | G94: 24 | H94: 24 | I94: 26 | J94: 27 | K94: 35\DNF | L94: 35\DNC
C95: K.Wood
C96: L.Wood
A97: 31 | B97: 4045 | C97: D.Deptula | D97: 228 | E97: 27 | F97: 28 | G97: 27 | H97: 13 | I97: 28 | J97: 35\OCS | K97: 35\DNF | L97: 35\DNS
C98: S.Rusk
C99: A.Vanderheyden
A100: 32 | B100: 3077 | C100: G.Bonner | D100: 241 | E100: 33 | F100: 32 | G100: 34 | H100: 32 | I100: 33 | J100: 31 | K100: 24 | L100: 22
C101: R.Bonner
C102: C.Smith
A103: 33 | B103: 4021 | C103: C.Annand | D103: 242 | E103: 31 | F103: 21 | G103: 26 | H103: 33 | I103: 28\RDG | J103: 33 | K103: 35\DNF | L103: 35\DNS
C104: M.Rendon
C105: K.Leef
A106: 34 | B106: 3450 | C106: R.Romer | D106: 250 | E106: 34 | F106: 31 | G106: 33 | H106: 22 | I106: 30 | J106: 30 | K106: 35\DNC | L106: 35\DNC
C107: M.Pytell
C108: L.Hoffman
